[Event "Early-Titled-Tuesday-Blitz-March-19-2024"]
[Site "Chess.com"]
[Date "2024.03.19"]
[Round "8"]
[White "alexrustemov"]
[Black "fandebobbyfischer"]
[Result "1-0"]
[WhiteElo "2875"]
[BlackElo "2688"]
[TimeControl "180+1"]
[EndTime "9:30:29 PDT"]
[Termination "alexrustemov won by resignation"]

1. d4 {[%clk 0:02:58.9]} 1... g6 {[%clk 0:03:00.2]} 2. c4 {[%clk 0:02:58.4]}
2... Bg7 {[%clk 0:03:00.7]} 3. Nf3 {[%clk 0:02:58.7]} 3... d6 {[%clk 0:03:01.1]}
4. g3 {[%clk 0:02:58.4]} 4... Nf6 {[%clk 0:03:00.6]} 5. Bg2 {[%clk 0:02:58.5]}
5... O-O {[%clk 0:03:01.5]} 6. Nc3 {[%clk 0:02:58.7]} 6... c5 {[%clk 0:03:01.9]}
7. dxc5 {[%clk 0:02:56.3]} 7... dxc5 {[%clk 0:03:02.8]} 8. O-O {[%clk
0:02:56.5]} 8... Nc6 {[%clk 0:03:02.8]} 9. Bf4 {[%clk 0:02:56.5]} 9... Nh5
{[%clk 0:03:00.4]} 10. Be3 {[%clk 0:02:56]} 10... b6 {[%clk 0:03:00.5]} 11. Qc1
{[%clk 0:02:54.8]} 11... Bb7 {[%clk 0:02:58.7]} 12. Rd1 {[%clk 0:02:51.1]} 12...
Qc8 {[%clk 0:02:57.9]} 13. Bh6 {[%clk 0:02:51]} 13... Rd8 {[%clk 0:02:47.2]} 14.
Bxg7 {[%clk 0:02:43.9]} 14... Nxg7 {[%clk 0:02:48.1]} 15. Rxd8+ {[%clk
0:02:30.8]} 15... Qxd8 {[%clk 0:02:48]} 16. b3 {[%clk 0:02:30.3]} 16... Rb8
{[%clk 0:02:43.9]} 17. Qb2 {[%clk 0:02:22.1]} 17... Nf5 {[%clk 0:02:14.9]} 18.
Rd1 {[%clk 0:02:20.1]} 18... Qf8 {[%clk 0:02:15.4]} 19. Nd5 {[%clk 0:02:19]}
19... Qg7 {[%clk 0:02:01]} 20. Qd2 {[%clk 0:02:02.3]} 20... e6 {[%clk
0:01:50.2]} 21. Nc3 {[%clk 0:01:49.5]} 21... h6 {[%clk 0:01:44.7]} 22. e3 {[%clk
0:01:48.7]} 22... Rd8 {[%clk 0:01:41.3]} 23. Qc1 {[%clk 0:01:44]} 23... Rxd1+
{[%clk 0:01:41.1]} 24. Nxd1 {[%clk 0:01:44]} 24... Nb4 {[%clk 0:01:21.4]} 25. a3
{[%clk 0:01:43.5]} 25... Na2 {[%clk 0:01:03.6]} 26. Qd2 {[%clk 0:01:38.8]} 26...
Qa1 {[%clk 0:01:03.1]} 27. Ne1 {[%clk 0:01:38.6]} 27... Bxg2 {[%clk 0:00:43.5]}
28. Kxg2 {[%clk 0:01:39.2]} 28... Nc1 {[%clk 0:00:43.4]} 29. Nc2 {[%clk
0:01:25.8]} 29... Qb1 {[%clk 0:00:32.4]} 30. Nc3 {[%clk 0:01:21.6]} 30... Qb2
{[%clk 0:00:32.4]} 31. Nd1 {[%clk 0:01:09.6]} 31... Qb1 {[%clk 0:00:31.3]} 32.
b4 {[%clk 0:00:52.7]} 32... Nb3 {[%clk 0:00:31.1]} 33. Qd3 {[%clk 0:00:52.4]}
33... Kg7 {[%clk 0:00:12.8]} 34. Nc3 {[%clk 0:00:46.5]} 34... Qb2 {[%clk
0:00:12.2]} 35. Nb5 {[%clk 0:00:46.7]} 35... Nc1 {[%clk 0:00:09.9]} 36. Qc3+
{[%clk 0:00:45]} 36... Qxc3 {[%clk 0:00:10.1]} 37. Nxc3 {[%clk 0:00:45.8]} 37...
Nb3 {[%clk 0:00:10.4]} 38. Nb5 {[%clk 0:00:37.1]} 38... a6 {[%clk 0:00:09.1]}
39. Nc7 {[%clk 0:00:36.9]} 39... Nd6 {[%clk 0:00:06.8]} 40. Nxa6 {[%clk
0:00:32.2]} 40... Nxc4 {[%clk 0:00:06.6]} 41. bxc5 {[%clk 0:00:32.4]} 41... bxc5
{[%clk 0:00:07.5]} 42. Kf1 {[%clk 0:00:27.5]} 42... Kf6 {[%clk 0:00:05.5]} 43.
Ke2 {[%clk 0:00:28.1]} 43... Nb6 {[%clk 0:00:04.4]} 44. Kd3 {[%clk 0:00:26.5]}
44... Nc1+ {[%clk 0:00:03]} 45. Kd2 {[%clk 0:00:26.3]} 45... Nb3+ {[%clk
0:00:03.2]} 46. Kc3 {[%clk 0:00:26.9]} 46... c4 {[%clk 0:00:01.7]} 47. Kb4
{[%clk 0:00:15.9]} 47... Nd2 {[%clk 0:00:01.1]} 48. Kb5 {[%clk 0:00:15.8]} 48...
Nd5 {[%clk 0:00:01]} 49. Nab4 {[%clk 0:00:15.1]} 49... Nc3+ {[%clk 0:00:01.8]}
50. Kc5 {[%clk 0:00:11.1]} 50... Na4+ {[%clk 0:00:02.2]} 51. Kd4 {[%clk
0:00:09]} 51... c3 {[%clk 0:00:02.2]} 52. Kd3 {[%clk 0:00:08.2]} 52... Nf3
{[%clk 0:00:01.8]} 53. h4 {[%clk 0:00:07.6]} 53... Ne5+ {[%clk 0:00:02.7]} 54.
Kd4 {[%clk 0:00:06.6]} 54... g5 {[%clk 0:00:03.1]} 55. hxg5+ {[%clk 0:00:05.8]}
55... hxg5 {[%clk 0:00:04]} 56. Na2 {[%clk 0:00:05.7]} 56... Nf3+ {[%clk
0:00:04.2]} 57. Kc4 {[%clk 0:00:05.6]} 57... Nd2+ {[%clk 0:00:04.5]} 58. Kb4
{[%clk 0:00:05.9]} 58... Nb2 {[%clk 0:00:05.1]} 59. Nxc3 {[%clk 0:00:06.3]}
59... Nd3+ {[%clk 0:00:05.3]} 60. Kb5 {[%clk 0:00:05.5]} 60... Nxf2 {[%clk
0:00:06.2]} 61. a4 {[%clk 0:00:05.7]} 61... Nd3 {[%clk 0:00:07.1]} 62. a5 {[%clk
0:00:05.8]} 62... g4 {[%clk 0:00:03.4]} 63. a6 {[%clk 0:00:06.2]} 63... Nf1
{[%clk 0:00:04.2]} 64. a7 {[%clk 0:00:06.2]} 64... Nxg3 {[%clk 0:00:05.1]} 65.
a8=Q {[%clk 0:00:06.8]} 65... Nf5 {[%clk 0:00:05.8]} 66. Qd8+ {[%clk 0:00:06.6]}
66... Kg6 {[%clk 0:00:05.8]} 67. Qxd3 {[%clk 0:00:07.2]} 1-0

[Event "Early-Titled-Tuesday-Blitz-March-19-2024"]
[Site "Chess.com"]
[Date "2024.03.19"]
[Round "8"]
[White "Polish_fighter3000"]
[Black "moro182"]
[Result "1/2-1/2"]
[WhiteElo "3147"]
[BlackElo "2866"]
[TimeControl "180+1"]
[EndTime "9:30:34 PDT"]
[Termination "Game drawn - insufficient material"]

1. c4 {[%clk 0:03:00.9]} 1... g6 {[%clk 0:03:00.9]} 2. d4 {[%clk 0:02:59]} 2...
Bg7 {[%clk 0:03:01.8]} 3. e4 {[%clk 0:02:59.4]} 3... d6 {[%clk 0:03:02]} 4. Be2
{[%clk 0:02:55.4]} 4... Nc6 {[%clk 0:02:59]} 5. Nf3 {[%clk 0:02:52.7]} 5... Bg4
{[%clk 0:02:57.1]} 6. Nbd2 {[%clk 0:02:51.4]} 6... Bxf3 {[%clk 0:02:42.6]} 7.
Nxf3 {[%clk 0:02:52.3]} 7... e5 {[%clk 0:02:42.6]} 8. d5 {[%clk 0:02:45]} 8...
Nd4 {[%clk 0:02:41.2]} 9. Nxd4 {[%clk 0:02:42.7]} 9... exd4 {[%clk 0:02:42.1]}
10. O-O {[%clk 0:02:43.1]} 10... Ne7 {[%clk 0:02:42.1]} 11. Bd3 {[%clk 0:02:39]}
11... O-O {[%clk 0:02:41.4]} 12. Re1 {[%clk 0:02:37.9]} 12... Qd7 {[%clk
0:02:37.5]} 13. f4 {[%clk 0:02:35.9]} 13... c6 {[%clk 0:02:30.9]} 14. Qb3 {[%clk
0:02:13.8]} 14... Kh8 {[%clk 0:02:19.5]} 15. Bd2 {[%clk 0:02:01.7]} 15... f5
{[%clk 0:02:18.5]} 16. dxc6 {[%clk 0:01:10]} 16... bxc6 {[%clk 0:02:19.3]} 17.
Qc2 {[%clk 0:01:10.4]} 17... Rae8 {[%clk 0:02:07.7]} 18. b4 {[%clk 0:01:07]}
18... fxe4 {[%clk 0:02:06.1]} 19. Bxe4 {[%clk 0:01:06]} 19... d5 {[%clk
0:02:02.6]} 20. Bd3 {[%clk 0:01:01.2]} 20... dxc4 {[%clk 0:02:02.1]} 21. Qxc4
{[%clk 0:01:02]} 21... Nd5 {[%clk 0:02:02.6]} 22. Rxe8 {[%clk 0:00:58.9]} 22...
Rxe8 {[%clk 0:02:03.5]} 23. Rc1 {[%clk 0:00:58.9]} 23... Nc3 {[%clk 0:02:00.6]}
24. Rf1 {[%clk 0:00:50]} 24... Qd5 {[%clk 0:01:49.1]} 25. f5 {[%clk 0:00:44.5]}
25... Qxc4 {[%clk 0:01:36.5]} 26. Bxc4 {[%clk 0:00:45.4]} 26... Ne4 {[%clk
0:01:37.2]} 27. Bc1 {[%clk 0:00:23.6]} 27... Nd6 {[%clk 0:01:12.1]} 28. Bd3
{[%clk 0:00:19]} 28... Nxf5 {[%clk 0:01:11.6]} 29. Bf4 {[%clk 0:00:17.9]} 29...
Ne3 {[%clk 0:01:05.4]} 30. Rc1 {[%clk 0:00:17.6]} 30... Nd5 {[%clk 0:01:05.5]}
31. Bd2 {[%clk 0:00:17.5]} 31... Nc3 {[%clk 0:01:04.8]} 32. Kf2 {[%clk
0:00:13.9]} 32... Be5 {[%clk 0:00:59]} 33. g3 {[%clk 0:00:12.2]} 33... Kg7
{[%clk 0:00:59]} 34. a3 {[%clk 0:00:11.7]} 34... Bf6 {[%clk 0:00:51.8]} 35. Kg2
{[%clk 0:00:11]} 35... Re7 {[%clk 0:00:50.1]} 36. h4 {[%clk 0:00:09.1]} 36... h5
{[%clk 0:00:49.1]} 37. Rf1 {[%clk 0:00:09]} 37... Ne4 {[%clk 0:00:44.5]} 38. Bf4
{[%clk 0:00:07.8]} 38... c5 {[%clk 0:00:30.1]} 39. Re1 {[%clk 0:00:05.5]} 39...
cxb4 {[%clk 0:00:28.8]} 40. Rxe4 {[%clk 0:00:03.1]} 40... Rxe4 {[%clk
0:00:28.8]} 41. Bxe4 {[%clk 0:00:04]} 41... bxa3 {[%clk 0:00:29.5]} 42. Bb1
{[%clk 0:00:02.8]} 42... d3 {[%clk 0:00:30]} 43. Bd2 {[%clk 0:00:03]} 43... Be5
{[%clk 0:00:25.2]} 44. Kf3 {[%clk 0:00:03.1]} 44... Kf6 {[%clk 0:00:22.7]} 45.
Ba2 {[%clk 0:00:03.2]} 45... Ke7 {[%clk 0:00:13.3]} 46. Bc4 {[%clk 0:00:02.6]}
46... Kf6 {[%clk 0:00:08.1]} 47. Bg5+ {[%clk 0:00:02]} 47... Kg7 {[%clk
0:00:08.1]} 48. Bc1 {[%clk 0:00:02]} 48... Bb2 {[%clk 0:00:07.2]} 49. Bxb2+
{[%clk 0:00:01.7]} 49... axb2 {[%clk 0:00:08.1]} 50. Bxd3 {[%clk 0:00:02.1]}
50... Kh6 {[%clk 0:00:07.3]} 51. Kf4 {[%clk 0:00:02]} 51... a5 {[%clk
0:00:06.2]} 52. Bc2 {[%clk 0:00:02]} 52... a4 {[%clk 0:00:06.2]} 53. Bd3 {[%clk
0:00:02]} 53... a3 {[%clk 0:00:06.7]} 54. Bb1 {[%clk 0:00:02.6]} 54... Kg7
{[%clk 0:00:07.1]} 55. Kg5 {[%clk 0:00:03]} 55... Kf7 {[%clk 0:00:07.7]} 56.
Bxg6+ {[%clk 0:00:03]} 56... Ke6 {[%clk 0:00:07.7]} 57. Bb1 {[%clk 0:00:03.3]}
57... Kd5 {[%clk 0:00:08.3]} 58. g4 {[%clk 0:00:02.9]} 58... hxg4 {[%clk
0:00:05.4]} 59. Kxg4 {[%clk 0:00:03.8]} 59... Kc4 {[%clk 0:00:05.9]} 60. Ba2+
{[%clk 0:00:02.9]} 60... Kc3 {[%clk 0:00:05.9]} 61. h5 {[%clk 0:00:03.7]} 61...
Kc2 {[%clk 0:00:04.5]} 62. h6 {[%clk 0:00:04.2]} 62... b1=Q {[%clk 0:00:05.1]}
63. Bxb1+ {[%clk 0:00:04.6]} 63... Kxb1 {[%clk 0:00:06]} 64. h7 {[%clk
0:00:05.1]} 64... a2 {[%clk 0:00:06.9]} 65. h8=Q {[%clk 0:00:05.5]} 65... a1=Q
{[%clk 0:00:07.8]} 66. Qh1+ {[%clk 0:00:06]} 66... Ka2 {[%clk 0:00:08]} 67. Qa8+
{[%clk 0:00:05.9]} 67... Kb1 {[%clk 0:00:08.4]} 68. Qh1+ {[%clk 0:00:05.8]}
68... Ka2 {[%clk 0:00:08.4]} 69. Qa8+ {[%clk 0:00:05.9]} 69... Kb1 {[%clk
0:00:09.3]} 70. Qe4+ {[%clk 0:00:05.7]} 70... Ka2 {[%clk 0:00:09.3]} 71. Qc4+
{[%clk 0:00:05.7]} 71... Kb1 {[%clk 0:00:09.3]} 72. Kf3 {[%clk 0:00:05.1]} 72...
Qa3+ {[%clk 0:00:08.5]} 73. Ke2 {[%clk 0:00:05]} 73... Qa2+ {[%clk 0:00:08.7]}
74. Kd3 {[%clk 0:00:05]} 74... Qxc4+ {[%clk 0:00:08.2]} 75. Kxc4 {[%clk
0:00:05.9]} 1/2-1/2

[Event "Early-Titled-Tuesday-Blitz-March-19-2024"]
[Site "Chess.com"]
[Date "2024.03.19"]
[Round "8"]
[White "NikitaShnadrygin"]
[Black "koncheto"]
[Result "0-1"]
[WhiteElo "2666"]
[BlackElo "2507"]
[TimeControl "180+1"]
[EndTime "9:30:42 PDT"]
[Termination "koncheto won by resignation"]

1. e4 {[%clk 0:03:00.9]} 1... c5 {[%clk 0:02:56.1]} 2. Nh3 {[%clk 0:02:59.2]}
2... Nc6 {[%clk 0:02:48.5]} 3. Nf4 {[%clk 0:02:57.8]} 3... g6 {[%clk 0:02:47.5]}
4. c3 {[%clk 0:02:54.3]} 4... Bg7 {[%clk 0:02:47.3]} 5. g3 {[%clk 0:02:52.2]}
5... d6 {[%clk 0:02:39.4]} 6. Bg2 {[%clk 0:02:51.1]} 6... Nf6 {[%clk 0:02:39.5]}
7. O-O {[%clk 0:02:48.8]} 7... Nd7 {[%clk 0:02:32.3]} 8. d3 {[%clk 0:02:46.2]}
8... O-O {[%clk 0:02:32.1]} 9. Re1 {[%clk 0:02:46.2]} 9... Rb8 {[%clk
0:02:32.1]} 10. h4 {[%clk 0:02:43.7]} 10... b5 {[%clk 0:02:29.9]} 11. h5 {[%clk
0:02:44.2]} 11... b4 {[%clk 0:02:30]} 12. hxg6 {[%clk 0:02:44.8]} 12... hxg6
{[%clk 0:02:28.6]} 13. Be3 {[%clk 0:02:34.7]} 13... bxc3 {[%clk 0:02:16.6]} 14.
bxc3 {[%clk 0:02:33.3]} 14... Nde5 {[%clk 0:02:17]} 15. Nd2 {[%clk 0:02:07.1]}
15... g5 {[%clk 0:01:40.1]} 16. Nd5 {[%clk 0:02:02.8]} 16... e6 {[%clk
0:01:28.9]} 17. d4 {[%clk 0:01:57.2]} 17... cxd4 {[%clk 0:01:12.3]} 18. cxd4
{[%clk 0:01:55.6]} 18... Nd3 {[%clk 0:01:12.6]} 19. Qh5 {[%clk 0:01:32.2]} 19...
f6 {[%clk 0:00:45.1]} 20. Nc3 {[%clk 0:01:12.6]} 20... Nxe1 {[%clk 0:00:41.4]}
21. Rxe1 {[%clk 0:01:13.5]} 21... Ne7 {[%clk 0:00:30.7]} 22. Bf1 {[%clk
0:01:06.9]} 22... Qe8 {[%clk 0:00:25.2]} 23. Qg4 {[%clk 0:01:00.9]} 23... d5
{[%clk 0:00:15.1]} 24. Qd1 {[%clk 0:00:51.6]} 24... dxe4 {[%clk 0:00:12.4]} 25.
Ndxe4 {[%clk 0:00:51.1]} 25... Nf5 {[%clk 0:00:11.2]} 26. d5 {[%clk 0:00:45.3]}
26... Bb7 {[%clk 0:00:09.4]} 27. Nc5 {[%clk 0:00:44.3]} 27... Nxe3 {[%clk
0:00:06.4]} 28. Rxe3 {[%clk 0:00:44.1]} 28... e5 {[%clk 0:00:03.7]} 29. Bc4
{[%clk 0:00:38.1]} 29... Kh8 {[%clk 0:00:03.8]} 30. g4 {[%clk 0:00:38.5]} 30...
Qg6 {[%clk 0:00:04.1]} 31. Rh3+ {[%clk 0:00:37.7]} 31... Bh6 {[%clk 0:00:04.7]}
32. N3e4 {[%clk 0:00:24.2]} 32... Rfc8 {[%clk 0:00:04.6]} 33. Nd6 {[%clk
0:00:21.1]} 33... Rxc5 {[%clk 0:00:04.5]} 34. Rxh6+ {[%clk 0:00:21.8]} 34...
Qxh6 {[%clk 0:00:04.5]} 35. Nf7+ {[%clk 0:00:22.5]} 35... Kg7 {[%clk 0:00:05]}
36. Nxh6 {[%clk 0:00:23.4]} 36... Kxh6 {[%clk 0:00:05.9]} 37. Bb3 {[%clk
0:00:19.7]} 37... Bxd5 {[%clk 0:00:05]} 38. Bxd5 {[%clk 0:00:13.7]} 38... Rd8
{[%clk 0:00:05.3]} 39. Qd3 {[%clk 0:00:14.3]} 39... Rcxd5 {[%clk 0:00:04.2]} 40.
Qh3+ {[%clk 0:00:15.2]} 40... Kg7 {[%clk 0:00:03.9]} 41. Qf3 {[%clk 0:00:16.1]}
41... Rd1+ {[%clk 0:00:03.4]} 42. Kg2 {[%clk 0:00:16.3]} 42... R1d4 {[%clk
0:00:02.7]} 43. Qf5 {[%clk 0:00:15.4]} 43... Rf4 {[%clk 0:00:02.2]} 44. Qe6
{[%clk 0:00:16]} 44... Rf8 {[%clk 0:00:02.6]} 45. Kg3 {[%clk 0:00:15.1]} 45...
Rf7 {[%clk 0:00:03]} 46. Qd5 {[%clk 0:00:13.4]} 46... Ra4 {[%clk 0:00:02.8]} 47.
Qb3 {[%clk 0:00:13.1]} 47... Rd4 {[%clk 0:00:02.7]} 48. f3 {[%clk 0:00:13]}
48... Rfd7 {[%clk 0:00:03]} 49. Qe6 {[%clk 0:00:12.9]} 49... Rd2 {[%clk
0:00:02.5]} 50. Kh3 {[%clk 0:00:12.1]} 50... a5 {[%clk 0:00:02.6]} 51. a4 {[%clk
0:00:11.9]} 51... Rf7 {[%clk 0:00:02.2]} 52. Qb6 {[%clk 0:00:11.3]} 52... Rd3
{[%clk 0:00:02]} 53. Kg3 {[%clk 0:00:10.7]} 53... e4 {[%clk 0:00:01.6]} 54. Qxa5
{[%clk 0:00:10.8]} 54... Rxf3+ {[%clk 0:00:01.9]} 55. Kg2 {[%clk 0:00:11]} 55...
Rf4 {[%clk 0:00:02.8]} 56. Qd5 {[%clk 0:00:10.7]} 56... Rxg4+ {[%clk 0:00:02.9]}
57. Kh3 {[%clk 0:00:11.6]} 57... Rf4 {[%clk 0:00:03.8]} 58. a5 {[%clk
0:00:12.4]} 58... Kg6 {[%clk 0:00:02.2]} 59. a6 {[%clk 0:00:11.2]} 59... Rf3+
{[%clk 0:00:02]} 60. Kg2 {[%clk 0:00:11.3]} 60... Ra3 {[%clk 0:00:02.9]} 61.
Qxe4+ {[%clk 0:00:11.6]} 61... Kg7 {[%clk 0:00:02.9]} 62. Qc4 {[%clk 0:00:08.2]}
62... Ra7 {[%clk 0:00:03.1]} 63. Qe6 {[%clk 0:00:07.7]} 63... R3xa6 {[%clk
0:00:04]} 64. Qe8 {[%clk 0:00:08.5]} 64... Rf7 {[%clk 0:00:03.8]} 65. Kg3 {[%clk
0:00:08.4]} 65... Raa7 {[%clk 0:00:04.7]} 66. Kg4 {[%clk 0:00:08.8]} 66... Rae7
{[%clk 0:00:05.6]} 67. Qd8 {[%clk 0:00:08.6]} 67... Re4+ {[%clk 0:00:05.7]} 68.
Kg3 {[%clk 0:00:07]} 68... Re5 {[%clk 0:00:05.1]} 69. Qd4 {[%clk 0:00:07.3]}
69... Rfe7 {[%clk 0:00:05.6]} 70. Qd6 {[%clk 0:00:07.6]} 70... Re3+ {[%clk
0:00:05.6]} 71. Kg4 {[%clk 0:00:08.1]} 71... R7e4+ {[%clk 0:00:05.9]} 72. Kf5
{[%clk 0:00:08]} 72... Rf4+ {[%clk 0:00:06.2]} 0-1

[Event "Early-Titled-Tuesday-Blitz-March-19-2024"]
[Site "Chess.com"]
[Date "2024.03.19"]
[Round "8"]
[White "Sofia_Blokhin"]
[Black "Flaccidmoves"]
[Result "0-1"]
[WhiteElo "2254"]
[BlackElo "2439"]
[TimeControl "180+1"]
[EndTime "9:30:44 PDT"]
[Termination "Flaccidmoves won by checkmate"]

1. d4 {[%clk 0:03:00.9]} 1... Nf6 {[%clk 0:02:59.3]} 2. c4 {[%clk 0:03:00.7]}
2... g6 {[%clk 0:02:59.8]} 3. Nc3 {[%clk 0:03:00.4]} 3... Bg7 {[%clk 0:02:59.7]}
4. e4 {[%clk 0:03:00.6]} 4... O-O {[%clk 0:03:00.3]} 5. f3 {[%clk 0:03:01]} 5...
c5 {[%clk 0:02:58.5]} 6. Be3 {[%clk 0:03:00.1]} 6... cxd4 {[%clk 0:02:57.2]} 7.
Bxd4 {[%clk 0:02:59.9]} 7... Nc6 {[%clk 0:02:57.8]} 8. Be3 {[%clk 0:02:59.4]}
8... Qa5 {[%clk 0:02:47.8]} 9. Qd2 {[%clk 0:02:57.8]} 9... d6 {[%clk 0:02:43.9]}
10. O-O-O {[%clk 0:02:56.7]} 10... Be6 {[%clk 0:02:38.1]} 11. Kb1 {[%clk
0:02:55.6]} 11... Rfc8 {[%clk 0:02:19.5]} 12. Nd5 {[%clk 0:02:48.9]} 12... Bxd5
{[%clk 0:01:51.4]} 13. cxd5 {[%clk 0:02:44.2]} 13... Qxd2 {[%clk 0:01:50.5]} 14.
Bxd2 {[%clk 0:02:37.4]} 14... Ne5 {[%clk 0:01:49.6]} 15. Bc3 {[%clk 0:02:35.5]}
15... Nc4 {[%clk 0:01:23.1]} 16. Bxc4 {[%clk 0:02:26.6]} 16... Rxc4 {[%clk
0:01:22.7]} 17. Ne2 {[%clk 0:02:26.6]} 17... Rac8 {[%clk 0:01:18.9]} 18. Rd4
{[%clk 0:02:13.6]} 18... Nd7 {[%clk 0:01:03.5]} 19. Rxc4 {[%clk 0:02:11.8]}
19... Rxc4 {[%clk 0:01:04.4]} 20. Bxg7 {[%clk 0:02:09.5]} 20... Kxg7 {[%clk
0:01:05.3]} 21. Nc3 {[%clk 0:02:08]} 21... Ne5 {[%clk 0:01:01.8]} 22. Rd1 {[%clk
0:02:06.4]} 22... g5 {[%clk 0:00:57.8]} 23. Nb5 {[%clk 0:01:57.3]} 23... a6
{[%clk 0:00:54]} 24. Nd4 {[%clk 0:01:57.4]} 24... Kf6 {[%clk 0:00:50]} 25. Nf5
{[%clk 0:01:56.1]} 25... h5 {[%clk 0:00:44.4]} 26. b3 {[%clk 0:01:49.2]} 26...
Rc8 {[%clk 0:00:42.6]} 27. Kb2 {[%clk 0:01:48.1]} 27... h4 {[%clk 0:00:40.1]}
28. h3 {[%clk 0:01:45.1]} 28... Ng6 {[%clk 0:00:39.5]} 29. Rd4 {[%clk
0:01:25.7]} 29... Nf4 {[%clk 0:00:38.9]} 30. Rd2 {[%clk 0:01:18.1]} 30... Rc7
{[%clk 0:00:39.5]} 31. a4 {[%clk 0:01:14.5]} 31... Ke5 {[%clk 0:00:38.3]} 32.
Ne3 {[%clk 0:01:11.2]} 32... Kf6 {[%clk 0:00:30.9]} 33. Ng4+ {[%clk 0:01:07.7]}
33... Kg6 {[%clk 0:00:29]} 34. Ne3 {[%clk 0:01:06]} 34... b5 {[%clk 0:00:25.7]}
35. axb5 {[%clk 0:00:58.5]} 35... axb5 {[%clk 0:00:26.6]} 36. b4 {[%clk
0:00:56.8]} 36... Kf6 {[%clk 0:00:22.8]} 37. Kb3 {[%clk 0:00:56]} 37... Ng6
{[%clk 0:00:19.8]} 38. Ng4+ {[%clk 0:00:54]} 38... Kg7 {[%clk 0:00:19.9]} 39.
Ne3 {[%clk 0:00:51.6]} 39... Ne5 {[%clk 0:00:18.9]} 40. Nf5+ {[%clk 0:00:51.5]}
40... Kf6 {[%clk 0:00:18.2]} 41. Nd4 {[%clk 0:00:50.4]} 41... Rb7 {[%clk
0:00:16.4]} 42. Ra2 {[%clk 0:00:48.1]} 42... Nc4 {[%clk 0:00:16]} 43. Ra6 {[%clk
0:00:41.8]} 43... Ke5 {[%clk 0:00:16.1]} 44. Nc6+ {[%clk 0:00:40.9]} 44... Kf4
{[%clk 0:00:16]} 45. Nd4 {[%clk 0:00:39.3]} 45... Kg3 {[%clk 0:00:15.6]} 46. Ra8
{[%clk 0:00:37.8]} 46... Kxg2 {[%clk 0:00:14.3]} 47. Rg8 {[%clk 0:00:37.8]}
47... f6 {[%clk 0:00:13.6]} 48. f4 {[%clk 0:00:36.9]} 48... Kxh3 {[%clk
0:00:11.4]} 49. fxg5 {[%clk 0:00:37.3]} 49... fxg5 {[%clk 0:00:12.1]} 50. Rxg5
{[%clk 0:00:37.6]} 50... Nd2+ {[%clk 0:00:12.2]} 51. Kc2 {[%clk 0:00:33.8]}
51... Nxe4 {[%clk 0:00:12.4]} 52. Rg7 {[%clk 0:00:32.3]} 52... Ng3 {[%clk
0:00:11.7]} 53. Nf3 {[%clk 0:00:30.6]} 53... Rc7+ {[%clk 0:00:10.2]} 54. Kd3
{[%clk 0:00:29.9]} 54... Nf5 {[%clk 0:00:09.6]} 55. Rh7 {[%clk 0:00:25.9]} 55...
Kg4 {[%clk 0:00:09.8]} 56. Nh2+ {[%clk 0:00:23]} 56... Kg3 {[%clk 0:00:09.7]}
57. Nf1+ {[%clk 0:00:23.2]} 57... Kg2 {[%clk 0:00:09.9]} 58. Nd2 {[%clk
0:00:22.3]} 58... h3 {[%clk 0:00:09.9]} 59. Nf3 {[%clk 0:00:17.8]} 59... Kxf3
{[%clk 0:00:09.7]} 60. Rxh3+ {[%clk 0:00:17.4]} 60... Kf4 {[%clk 0:00:10.4]} 61.
Rh7 {[%clk 0:00:16.6]} 61... Ke5 {[%clk 0:00:10.7]} 62. Rh5 {[%clk 0:00:15.9]}
62... Kf6 {[%clk 0:00:10.5]} 63. Rh8 {[%clk 0:00:10.8]} 63... Rc4 {[%clk
0:00:10.7]} 64. Rb8 {[%clk 0:00:09.3]} 64... Rxb4 {[%clk 0:00:10.6]} 65. Kc3
{[%clk 0:00:09.3]} 65... Rc4+ {[%clk 0:00:10.7]} 66. Kb3 {[%clk 0:00:09.4]}
66... Nd4+ {[%clk 0:00:10.9]} 67. Kb2 {[%clk 0:00:09]} 67... Ke5 {[%clk
0:00:10.9]} 68. Rb7 {[%clk 0:00:06.8]} 68... Kxd5 {[%clk 0:00:11.2]} 69. Rxe7
{[%clk 0:00:07]} 69... b4 {[%clk 0:00:11.6]} 70. Rh7 {[%clk 0:00:06.2]} 70... b3
{[%clk 0:00:12.1]} 71. Rh6 {[%clk 0:00:06.3]} 71... Rc2+ {[%clk 0:00:11.8]} 72.
Kb1 {[%clk 0:00:04.9]} 72... Rg2 {[%clk 0:00:11.9]} 73. Rh5+ {[%clk 0:00:04.5]}
73... Kc4 {[%clk 0:00:12.1]} 74. Rh4 {[%clk 0:00:03.8]} 74... d5 {[%clk
0:00:11.1]} 75. Rh3 {[%clk 0:00:01.7]} 75... Rg1+ {[%clk 0:00:10.7]} 76. Kb2
{[%clk 0:00:01.6]} 76... Rg2+ {[%clk 0:00:11.2]} 77. Kb1 {[%clk 0:00:01.9]}
77... Nb5 {[%clk 0:00:11.8]} 78. Rh4+ {[%clk 0:00:01.8]} 78... d4 {[%clk
0:00:12.1]} 79. Rh3 {[%clk 0:00:01.9]} 79... Nc3+ {[%clk 0:00:12.4]} 80. Kc1
{[%clk 0:00:01.3]} 80... b2# {[%clk 0:00:13]} 0-1